fUSD/lending_fUSD_20250417
["ID","MTS","AMOUNT","RATE_DAILY","PERIOD"]
[358229321,1744858275776,-500.0,0.00052602,120]
[358229322,1744858275787,-1810.597504,0.00052602,120]
[358229323,1744858275797,-649.32,0.00052602,120]
[358229324,1744858275806,-500.0,0.00052602,120]
[358229325,1744858275816,-550.3,0.00052602,120]
[358229326,1744858275826,-569.57755585,0.00052602,120]
[358229327,1744858275836,-500.0,0.00052602,120]
[358229328,1744858275845,-500.0,0.00052602,120]
[358229329,1744858275856,-500.0,0.00052602,120]
[358229330,1744858275866,-500.0,0.00052602,120]
[358229331,1744858275877,-500.0,0.00052602,120]
[358229332,1744858275887,-500.0,0.00052602,120]
[358229333,1744858275896,-500.0,0.00052602,120]
[358229334,1744858275907,-500.0,0.00052602,120]
[358229335,1744858275917,-1003.8,0.00052602,120]
[358229336,1744858275927,-500.0,0.00052602,120]
[358229337,1744858275938,-511.19,0.00052602,120]
[358229338,1744858275948,-500.0,0.00052602,120]
[358229339,1744858275957,-500.0,0.00052602,120]
[358229340,1744858275967,-500.0,0.00052602,120]
[358229341,1744858275977,-1086.98,0.00052602,120]
[358229342,1744858275987,-151.0,0.00052602,120]
[358229343,1744858275997,-500.0,0.00052602,14]
[358229344,1744858276007,-151.0,0.00052602,120]
[358229345,1744858276017,-1473.01,0.00052602,120]
[358229346,1744858276027,-500.0,0.00052602,120]
[358229347,1744858276037,-500.0,0.00052602,120]
[358229348,1744858276047,-500.0,0.00052602,120]
[358229349,1744858276057,-500.0,0.00052602,120]
[358229350,1744858276070,-668.38,0.00052602,120]
[358229351,1744858276081,-500.0,0.00052602,120]
[358229352,1744858276091,-500.0,0.00052602,120]
[358229353,1744858276100,-500.0,0.00052602,120]
[358229354,1744858276110,-500.0,0.00052602,120]
[358229355,1744858276121,-500.0,0.00052602,120]
[358229356,1744858276131,-151.0,0.00052602,120]
[358229357,1744858276141,-152.330636,0.00052602,120]
[358229358,1744858276151,-151.0,0.00052602,120]
[358229359,1744858276162,-500.0,0.00052602,120]
[358229360,1744858276171,-298.986785,0.00052602,120]
[358229361,1744858276181,-500.0,0.00052602,120]
[358229362,1744858276190,-500.0,0.00052602,120]
[358229363,1744858276200,-500.0,0.00052602,120]
[358229364,1744858276209,-1006.93,0.00052602,120]
[358229365,1744858276219,-500.0,0.00052602,120]
[358229366,1744858276229,-450.08286282,0.00052602,120]
[358229367,1744858276239,-500.0,0.00052602,120]
[358229368,1744858276249,-500.0,0.00052602,120]
[358229369,1744858276259,-539.66445658,0.00052602,120]
[358229370,1744858276269,-500.0,0.00052602,120]
[358229371,1744858276278,-500.0,0.00052602,120]
[358229372,1744858276288,-2928.53,0.00052602,120]
[358229373,1744858276298,-510.89,0.00052602,120]
[358229374,1744858276308,-500.0,0.00052602,120]
[358229375,1744858276318,-2162.74,0.00052602,120]
[358229376,1744858276328,-1005.07,0.00052602,120]
[358229377,1744858276338,-575.0,0.00052602,120]
[358229378,1744858276347,-500.0,0.00052602,120]
[358229379,1744858276358,-500.0,0.00052602,120]
[358229380,1744858276369,-521.33,0.00052602,120]
[358229381,1744858276378,-1721.06,0.00052602,120]
[358229382,1744858276388,-500.0,0.00052602,120]
[358229383,1744858276398,-1964.51,0.00052602,120]
[358229384,1744858276407,-500.0,0.00052602,120]
[358229385,1744858276417,-500.0,0.00052602,120]
[358229386,1744858276426,-731.66,0.00052602,120]
[358229387,1744858276439,-500.0,0.00052602,120]
[358229388,1744858276457,-500.0,0.00052602,120]
[358229389,1744858276467,-1698.37,0.00052602,120]
[358229390,1744858276476,-500.0,0.00052602,120]
[358229391,1744858276486,-500.0,0.00052602,120]
[358229392,1744858276496,-933.1,0.00052602,118]
[358229393,1744858276506,-1973.91,0.00052602,120]
[358229394,1744858276516,-571.54,0.00052602,120]
[358229395,1744858276525,-1524.84,0.00052602,120]
[358229396,1744858276536,-500.0,0.00052602,120]
[358229397,1744858276545,-407.06465015,0.00052602,120]
[358229398,1744858276555,-500.0,0.00052602,120]
[358229399,1744858276564,-608.00908174,0.00052602,120]
[358229400,1744858276574,-523.77459065,0.00052602,120]
[358229401,1744858276583,-2172.87,0.00052602,120]
[358229402,1744858276593,-841.2,0.00052602,120]
[358229403,1744858276602,-500.0,0.00052602,120]
[358229404,1744858276611,-2000.0,0.00052602,2]
[358229405,1744858276620,-500.0,0.00052602,120]
[358229406,1744858276629,-184.763129,0.00052602,120]
[358229407,1744858276639,-500.0,0.00052602,120]
[358229408,1744858276648,-184.763129,0.00052602,120]
[358229409,1744858276657,-500.0,0.00052602,120]
[358229410,1744858276667,-777.54,0.00052602,120]
[358229411,1744858276676,-875.1,0.00052602,120]
[358229412,1744858276686,-184.763129,0.00052602,120]
[358229413,1744858276696,-500.0,0.00052602,120]
[358229414,1744858276705,-184.763129,0.00052602,120]
[358229415,1744858276715,-500.0,0.00052602,120]
[358229416,1744858276724,-1921.13,0.00052602,120]
[358229417,1744858276735,-500.0,0.00052602,120]
[358229418,1744858276744,-549.62,0.00052602,120]
[358229419,1744858276754,-500.0,0.00052602,120]
[358229420,1744858276764,-1092.41,0.00052602,120]
[358229421,1744858276774,-500.0,0.00052602,120]
[358229422,1744858276783,-500.0,0.00052602,120]
[358229423,1744858276793,-500.0,0.00052602,120]
[358229424,1744858276802,-559.1,0.00052602,120]
[358229425,1744858276811,-500.0,0.00052602,120]
[358229426,1744858276821,-500.0,0.00052602,120]
[358229427,1744858276830,-500.0,0.00052602,120]
[358229428,1744858276840,-500.0,0.00052602,120]
[358229429,1744858276850,-500.0,0.00052602,120]
[358229430,1744858276859,-500.0,0.00052602,120]
[358229431,1744858276869,-1445.66,0.00052602,120]
[358229432,1744858276878,-500.0,0.00052602,120]
[358229433,1744858276887,-1406.86,0.00052602,120]
[358229434,1744858276897,-180.22228015,0.00052602,120]
[358229435,1744858276907,-500.0,0.00052602,120]
[358229436,1744858276916,-500.0,0.00052602,120]
[358229437,1744858276926,-151.0,0.00052602,120]
[358229438,1744858276935,-151.0,0.00052602,120]
[358229439,1744858276944,-2414.01,0.00052602,120]
[358229440,1744858276954,-1089.46,0.00052602,120]
[358229441,1744858276963,-150.57150643,0.00052602,120]
[358229442,1744858276973,-500.0,0.00052602,120]
[358229443,1744858276983,-500.0,0.00052602,120]
[358229444,1744858276992,-610.72,0.00052602,120]
[358229445,1744858277001,-500.0,0.00052602,120]
[358229446,1744858277011,-500.0,0.00052602,120]
[358229447,1744858277020,-255.62006493,0.00052602,120]
[358229448,1744858277030,-1596.73,0.00052602,120]
[358229449,1744858277040,-4094.93,0.00052602,120]
[358229450,1744858277049,-500.0,0.00052602,120]
[358229451,1744858277059,-500.0,0.00052602,120]
[358229452,1744858277070,-500.0,0.00052602,120]
[358229453,1744858277081,-500.0,0.00052602,120]
[358229454,1744858277092,-500.0,0.00052602,120]
[358229455,1744858277101,-5735.765822,0.00052602,120]
[358229456,1744858277111,-5735.765822,0.00052602,120]
[358229457,1744858277121,-500.0,0.00052602,120]
[358229458,1744858277130,-500.0,0.00052602,120]
[358229459,1744858277140,-5735.765822,0.00052602,120]
[358229460,1744858277150,-565.41711943,0.00052602,120]
[358229461,1744858277159,-582.87,0.00052602,120]
[358229462,1744858277170,-500.0,0.00052602,120]
[358229463,1744858277179,-1132.52,0.00052602,120]
[358229464,1744858277189,-500.0,0.00052602,120]
[358229465,1744858277199,-500.0,0.00052602,120]
[358229466,1744858277208,-500.0,0.00052602,120]
[358229467,1744858277218,-500.0,0.00052602,120]
[358229468,1744858277228,-5735.765822,0.00052602,120]
[358229469,1744858277237,-500.0,0.00052602,120]
[358229470,1744858277247,-1052.23,0.00052602,120]
[358229471,1744858277257,-500.0,0.00052602,120]
[358229472,1744858277266,-1093.58,0.00052602,120]
[358229473,1744858277276,-500.0,0.00052602,120]
[358229474,1744858277287,-1545.17,0.00052602,120]
[358229475,1744858277297,-1053.96,0.00052602,120]
[358229476,1744858277306,-500.0,0.00052602,120]
[358229477,1744858277316,-500.0,0.00052602,120]
[358229478,1744858277325,-508.41251071,0.00052602,120]
[358229479,1744858277335,-500.0,0.00052602,120]
[358229480,1744858277344,-2317.13,0.00052602,120]
[358229481,1744858277354,-500.0,0.00052602,120]
[358229482,1744858277363,-500.0,0.00052602,120]
[358229483,1744858277374,-630.82,0.00052602,120]
[358229484,1744858277383,-1244.03,0.00052602,120]
[358229485,1744858277392,-780.6,0.00052602,120]
[358229486,1744858277402,-500.0,0.00052602,120]
[358229487,1744858277412,-500.0,0.00052602,120]
[358229488,1744858277421,-500.0,0.00052602,120]
[358229489,1744858277431,-538.59798242,0.00052602,120]
[358229490,1744858277446,-520.67036052,0.00052602,120]
[358229491,1744858277455,-1200.78,0.00052602,120]
[358229492,1744858277465,-500.0,0.00052602,120]
[358229493,1744858277475,-500.0,0.00052602,120]
[358229494,1744858277486,-500.0,0.00052602,120]
[358229495,1744858277496,-241.32252213,0.00052602,120]
[358229496,1744858277577,-2648.1,0.00052602,120]
[358229497,1744858277587,-500.0,0.00052602,120]
[358229498,1744858277596,-976.31,0.00052602,120]
[358229499,1744858277606,-500.0,0.00052602,120]
[358229500,1744858277615,-500.0,0.00052602,120]
[358229501,1744858277625,-500.0,0.00052602,120]
[358229502,1744858277635,-500.0,0.00052602,120]
[358229503,1744858277644,-500.0,0.00052602,120]
[358229504,1744858277654,-151.0,0.00052602,120]
[358229505,1744858277664,-627.75,0.00052602,120]
[358229506,1744858277673,-151.0,0.00052602,120]
[358229507,1744858277682,-500.0,0.00052602,120]
[358229508,1744858277692,-500.0,0.00052602,120]
[358229509,1744858277702,-576.2643884,0.00052602,120]
[358229510,1744858277710,-540.68874232,0.00052602,120]
[358229511,1744858277719,-500.0,0.00052602,120]
[358229512,1744858277728,-1484.61,0.00052602,120]
[358229513,1744858277737,-500.0,0.00052602,120]
[358229514,1744858277747,-500.0,0.00052602,120]
[358229515,1744858277757,-500.0,0.00052602,120]
[358229516,1744858277768,-500.0,0.00052602,120]
[358229517,1744858277778,-664.07,0.00052602,120]
[358229518,1744858277789,-500.0,0.00052602,120]
[358229519,1744858277798,-500.0,0.00052602,120]
[358229520,1744858277808,-152.966505,0.00052602,120]
[358229521,1744858277818,-500.0,0.00052602,120]
[358229522,1744858277828,-500.0,0.00052602,120]
[358229523,1744858277837,-500.0,0.00052602,120]
[358229524,1744858277847,-520.83,0.00052602,120]
[358229525,1744858277856,-500.0,0.00052602,120]
[358229526,1744858277866,-500.0,0.00052602,120]
[358229527,1744858277876,-152.0,0.00052603,7]
[358229528,1744858277886,-2000.0,0.0005263,120]
[358229529,1744858277896,-200.0,0.00052673,10]
[358229530,1744858277906,-573.70762522,0.00052681,15]
[358229531,1744858277916,-573.70762522,0.00052804,15]
[358229532,1744858277926,-671.68,0.00052864,120]
[358229533,1744858277936,-448.81946687,0.00052864,120]
[358229534,1744858277947,-892.86,0.00052864,120]
[358229535,1744858277956,-500.0,0.00052864,120]
[358229536,1744858277966,-500.0,0.00052864,120]
[358229537,1744858277975,-643.64359807,0.00052864,120]
[358229538,1744858277985,-628.61027146,0.00052864,120]
[358229539,1744858277994,-500.0,0.00052864,120]
[358229540,1744858278004,-500.0,0.00052864,120]
[358229541,1744858278014,-500.0,0.00052864,120]
[358229542,1744858278024,-151.0,0.00052864,120]
[358229543,1744858278034,-152.234807,0.00052864,120]
[358229544,1744858278043,-197.975898,0.00052864,120]
[358229545,1744858278052,-151.0,0.00052864,120]
[358229546,1744858278062,-1810.597504,0.00052864,120]
[358229547,1744858278071,-1810.597504,0.00052864,120]
[358229548,1744858278082,-150.0,0.00052873,10]
[358229549,1744858278092,-550.06,0.00052875,15]
[358229550,1744858278101,-550.06,0.00052875,15]
[358229551,1744858278111,-550.06,0.00052875,15]
[358229552,1744858278121,-671.919064,0.00052876,120]
[358229553,1744858278130,-155.383725,0.00052876,120]
[358229554,1744858278140,-500.0,0.00052876,120]
[358229555,1744858278149,-500.0,0.00052876,120]
[358229556,1744858278159,-500.0,0.00052876,120]
[358229557,1744858278169,-500.0,0.00052876,120]
[358229558,1744858278178,-500.0,0.00052876,120]
[358229559,1744858278188,-1027.9,0.00052876,120]
[358229560,1744858278198,-500.0,0.00052876,120]
[358229561,1744858278208,-1018.07,0.00052876,120]
[358229562,1744858278217,-500.0,0.00052876,120]
[358229563,1744858278227,-500.0,0.00052876,120]
[358229564,1744858278237,-500.0,0.00052876,120]
[358229565,1744858278246,-2828.8,0.00052876,2]
[358229566,1744858278256,-500.0,0.00052876,120]
[358229567,1744858278266,-500.0,0.00052876,120]
[358229568,1744858278276,-131030.97,0.00052876,7]
[358229569,1744858278288,-1074.6,0.00052876,120]
[358229570,1744858278297,-512.75,0.00052876,120]
[358229571,1744858278308,-500.0,0.00052876,120]
[358229572,1744858278318,-500.0,0.00052876,120]
[358229573,1744858278328,-500.0,0.00052876,120]
[358229574,1744858278338,-500.0,0.00052876,120]
[358229575,1744858278348,-500.0,0.00052876,120]
[358229576,1744858278358,-500.0,0.00052876,120]
[358229577,1744858278368,-500.0,0.00052876,120]
[358229578,1744858278378,-507.2730437,0.00052876,120]
[358229579,1744858278388,-516.49818591,0.00052876,120]
[358229580,1744858278398,-500.0,0.00052876,120]
[358229581,1744858278408,-500.0,0.00052876,120]
[358229582,1744858278418,-500.0,0.00052876,120]
[358229583,1744858278430,-500.0,0.00052876,120]
[358229584,1744858278441,-520.83517246,0.00052876,120]
[358229585,1744858278451,-501.51,0.00052876,120]
[358229586,1744858278460,-500.0,0.00052876,120]
[358229587,1744858278470,-610.31817576,0.00052876,120]
[358229588,1744858278481,-500.0,0.00052876,120]
[358229589,1744858278491,-500.0,0.00052876,120]
[358229590,1744858278501,-500.0,0.00052876,120]
[358229591,1744858278511,-183.80738021,0.00052876,120]
[358229592,1744858278521,-500.0,0.00052876,120]
[358229593,1744858278531,-578.92778906,0.00052876,120]
[358229594,1744858278541,-300.0,0.00052876,120]
[358229595,1744858278551,-500.0,0.00052876,120]
[358229596,1744858278562,-500.0,0.00052876,120]
[358229597,1744858278572,-576.26356784,0.00052876,120]
[358229598,1744858278582,-500.0,0.00052876,120]
[358229599,1744858278592,-1163.74,0.00052876,120]
[358229600,1744858278601,-500.0,0.00052876,120]
[358229601,1744858278611,-500.0,0.00052876,120]
[358229602,1744858278620,-500.0,0.00052876,120]
[358229603,1744858278629,-500.0,0.00052876,120]
[358229604,1744858278639,-942.51,0.00052876,120]
[358229605,1744858278648,-500.0,0.00052876,120]
[358229606,1744858278658,-500.0,0.00052876,120]
[358229607,1744858278667,-1668.15,0.00052876,120]
[358229608,1744858278677,-500.0,0.00052876,120]
[358229609,1744858278687,-500.0,0.00052876,120]
[358229610,1744858278697,-500.0,0.00052876,120]
[358229611,1744858278708,-500.0,0.00052876,120]
[358229612,1744858278718,-500.0,0.00052876,120]
[358229613,1744858278727,-500.0,0.00052876,120]
[358229614,1744858278737,-500.0,0.00052876,120]
[358229615,1744858278746,-523.60778342,0.00052876,120]
[358229616,1744858278756,-326.6507397,0.00052876,120]
[358229617,1744858278766,-747.62,0.00052876,120]
[358229618,1744858278776,-500.0,0.00052876,120]
[358229619,1744858278786,-500.0,0.00052876,120]
[358229620,1744858278795,-500.0,0.00052876,120]
[358229621,1744858278805,-500.0,0.00052876,120]
[358229622,1744858278814,-500.0,0.00052876,120]
[358229623,1744858278823,-500.0,0.00052876,120]
[358229624,1744858278833,-208.47003251,0.00052876,120]
[358229625,1744858278842,-500.0,0.00052876,120]
[358229626,1744858278851,-500.0,0.00052876,120]
[358229627,1744858278861,-500.0,0.00052876,120]
[358229628,1744858278871,-500.0,0.00052876,120]
[358229629,1744858278881,-500.0,0.00052876,120]
[358229630,1744858278892,-500.0,0.00052876,120]
[358229631,1744858278901,-500.0,0.00052876,120]
[358229632,1744858278911,-500.0,0.00052876,120]
[358229633,1744858278920,-500.0,0.00052876,120]
[358229634,1744858278930,-500.0,0.00052876,120]
[358229635,1744858278939,-500.0,0.00052876,120]
[358229636,1744858278949,-425.8187823,0.00052876,120]
[358229637,1744858278958,-500.0,0.00052876,120]
[358229638,1744858278968,-500.0,0.00052876,120]
[358229639,1744858278977,-1683.3,0.00052876,120]
[358229640,1744858278986,-964.81,0.00052876,30]
[358229641,1744858278995,-500.0,0.00052876,120]
[358229642,1744858279005,-500.0,0.00052876,120]
[358229643,1744858279013,-500.0,0.00052876,120]
[358229644,1744858279023,-673.66,0.00052876,2]
[358229645,1744858279034,-500.0,0.00052876,120]
[358229646,1744858279045,-500.0,0.00052876,120]
[358229647,1744858279057,-500.0,0.00052876,120]
[358229648,1744858279069,-500.0,0.00052876,120]
[358229649,1744858279080,-480.58360885,0.00052876,120]
[358229650,1744858279091,-739.67,0.00052876,120]
[358229651,1744858279102,-739.67,0.00052876,120]
[358229652,1744858279113,-500.0,0.00052876,120]
[358229653,1744858279123,-500.0,0.00052876,120]
[358229654,1744858279133,-500.0,0.00052876,120]
[358229655,1744858279143,-605.4907013,0.00052876,120]
[358229656,1744858279153,-500.0,0.00052876,120]
[358229657,1744858279163,-1000.0,0.00052876,120]
[358229658,1744858279173,-500.0,0.00052876,120]
[358229659,1744858279182,-614.55,0.00052876,120]
[358229660,1744858279192,-500.0,0.00052876,120]
[358229661,1744858279202,-500.0,0.00052876,120]
[358229662,1744858279213,-500.0,0.00052876,120]
[358229663,1744858279223,-500.0,0.00052876,120]
[358229664,1744858279233,-500.0,0.00052876,120]
[358229665,1744858279243,-500.0,0.00052876,120]
[358229666,1744858279253,-1727.98,0.00052876,120]
[358229667,1744858279263,-500.0,0.00052876,120]
[358229668,1744858279273,-500.0,0.00052876,120]
[358229669,1744858279283,-297.554189,0.00052876,120]
[358229670,1744858279293,-500.0,0.00052876,120]
[358229671,1744858279303,-500.0,0.00052876,120]
[358229672,1744858279312,-500.0,0.00052876,120]
[358229673,1744858279323,-539.28,0.00052876,120]
[358229674,1744858279332,-1975.51,0.00052876,120]
[358229675,1744858279342,-500.0,0.00052876,120]
[358229676,1744858279352,-567.86,0.00052876,120]
[358229677,1744858279361,-500.0,0.00052876,120]
[358229678,1744858279370,-1074.62,0.00052876,120]
[358229679,1744858279380,-815.44,0.00052876,120]
[358229680,1744858279390,-500.0,0.00052876,120]
[358229681,1744858279400,-500.0,0.00052876,120]
[358229682,1744858279411,-669.36,0.00052876,120]
[358229683,1744858279421,-500.0,0.00052876,120]
[358229684,1744858279433,-1264.26,0.00052876,120]
[358229685,1744858279446,-500.0,0.00052876,120]
[358229686,1744858279456,-714.49,0.00052876,120]
[358229687,1744858279465,-500.0,0.00052876,120]
[358229688,1744858279478,-500.0,0.00052876,120]
[358229689,1744858279488,-500.0,0.00052876,120]
[358229690,1744858279499,-500.0,0.00052876,120]
[358229691,1744858279508,-500.0,0.00052876,120]
[358229692,1744858279518,-767.85,0.00052876,120]
[358229693,1744858279528,-619.20610571,0.00052876,120]
[358229694,1744858279538,-500.0,0.00052876,120]
[358229695,1744858279548,-1949.99,0.00052876,120]
[358229696,1744858279557,-1953.53,0.00052876,120]
[358229697,1744858279568,-500.0,0.00052876,120]
[358229698,1744858279578,-500.0,0.00052876,120]
[358229699,1744858279587,-500.0,0.00052876,120]
[358229700,1744858279597,-500.0,0.00052876,120]
[358229701,1744858279607,-500.0,0.00052876,120]
[358229702,1744858279617,-609.46,0.00052876,120]
[358229703,1744858279627,-500.0,0.00052876,120]
[358229704,1744858279637,-500.0,0.00052876,120]
[358229705,1744858279647,-500.0,0.00052876,120]
[358229706,1744858279657,-500.0,0.00052876,120]
[358229707,1744858279666,-500.0,0.00052876,120]
[358229708,1744858279676,-832.63,0.00052876,120]
[358229709,1744858279686,-500.0,0.00052876,120]
[358229710,1744858279695,-500.0,0.00052876,120]
[358229711,1744858279705,-2867.27,0.00052876,120]
[358229712,1744858279714,-500.0,0.00052876,120]
[358229713,1744858279724,-500.0,0.00052876,60]
[358229714,1744858279734,-500.0,0.00052876,120]
[358229715,1744858279743,-1201.93,0.00052876,120]
[358229716,1744858279753,-500.0,0.00052876,120]
[358229717,1744858279762,-500.0,0.00052876,120]
[358229718,1744858279772,-500.0,0.00052876,120]
[358229719,1744858279782,-500.0,0.00052876,120]
[358229720,1744858279791,-500.0,0.00052876,120]
[358229721,1744858279802,-501.97789605,0.00052876,120]
[358229722,1744858279811,-906.23,0.00052876,120]
[358229723,1744858279821,-215.34740934,0.00052876,120]
[358229724,1744858279831,-500.0,0.00052876,120]
[358229725,1744858279841,-1534.19,0.00052876,120]
[358229726,1744858279851,-500.0,0.00052876,120]
[358229727,1744858279862,-500.0,0.00052876,120]
[358229728,1744858279873,-500.0,0.00052876,120]
[358229729,1744858279882,-1284.74,0.00052876,120]
[358229730,1744858279892,-1860.5,0.00052876,120]
[358229731,1744858279901,-258.99891201,0.00052876,120]
[358229732,1744858279911,-1008.59,0.00052876,120]
[358229733,1744858279921,-500.0,0.00052876,120]
[358229734,1744858279930,-533.790526,0.00052876,120]
[358229735,1744858279940,-1161.23,0.00052876,120]
[358229736,1744858279950,-500.0,0.00052876,120]
[358229737,1744858279960,-500.0,0.00052876,120]
[358229738,1744858279971,-551.08270327,0.00052876,120]
[358229739,1744858279980,-2071.3,0.00052876,120]
[358229740,1744858279990,-500.0,0.00052876,120]
[358229741,1744858279999,-1412.98,0.00052876,120]
[358229742,1744858280008,-500.0,0.00052876,120]
[358229743,1744858280019,-500.0,0.00052876,120]
[358229744,1744858280028,-1166.11,0.00052876,120]
[358229745,1744858280039,-1297.72,0.00052876,120]
[358229746,1744858280050,-500.0,0.00052876,120]
[358229747,1744858280062,-500.0,0.00052876,120]
[358229748,1744858280073,-500.0,0.00052876,120]
[358229749,1744858280083,-500.0,0.00052876,120]
[358229750,1744858280093,-500.0,0.00052876,120]
[358229751,1744858280103,-553.88879893,0.00052876,120]
[358229752,1744858280112,-500.0,0.00052876,120]
[358229753,1744858280122,-500.0,0.00052876,120]
[358229754,1744858280131,-264.93501177,0.00052876,120]
[358229755,1744858280141,-1029.43,0.00052876,120]
[358229756,1744858280151,-500.0,0.00052876,120]
[358229757,1744858280161,-1353.84,0.00052876,120]
[358229758,1744858280170,-998.22,0.00052876,120]
[358229759,1744858280180,-500.0,0.00052876,120]
[358229760,1744858280189,-500.0,0.00052876,120]
[358229761,1744858280199,-504.02,0.00052876,120]
[358229762,1744858280208,-1311.04,0.00052876,120]
[358229763,1744858280219,-310.812792,0.00052876,120]
[358229764,1744858280228,-500.0,0.00052876,120]
[358229765,1744858280238,-1467.25,0.00052876,120]
[358229766,1744858280247,-500.0,0.00052876,120]
[358229767,1744858280256,-564.28763403,0.00052876,120]
[358229768,1744858280267,-500.0,0.00052876,120]
[358229769,1744858280277,-500.0,0.00052876,120]
[358229770,1744858280288,-500.0,0.00052876,120]
[358229771,1744858280298,-1217.53,0.00052876,120]
[358229772,1744858280309,-500.0,0.00052876,120]
[358229773,1744858280319,-647.24,0.00052876,120]
[358229774,1744858280328,-733.63,0.00052876,120]
[358229775,1744858280338,-500.0,0.00052876,120]
[358229776,1744858280347,-638.53935936,0.00052876,120]
[358229777,1744858280357,-1326.05,0.00052876,35]
[358229778,1744858280367,-2113.15,0.00052876,120]
[358229779,1744858280377,-500.0,0.00052876,120]
[358229780,1744858280387,-500.0,0.00052876,120]
[358229781,1744858280397,-626.26,0.00052876,120]
[358229782,1744858280407,-967.49,0.00052876,120]
[358229783,1744858280418,-500.0,0.00052876,120]
[358229784,1744858280432,-500.0,0.00052876,120]
[358229785,1744858280443,-500.0,0.00052876,120]
[358229786,1744858280454,-500.0,0.00052876,120]
[358229787,1744858280464,-1460.72,0.00052876,120]
[358229788,1744858280476,-620.57,0.00052876,120]
[358229789,1744858280486,-500.0,0.00052876,120]
[358229790,1744858280496,-636.66492489,0.00052876,120]
[358229791,1744858280509,-692.08,0.00052876,120]
[358229792,1744858280519,-940.79,0.00052876,120]
[358229793,1744858280529,-653.46,0.00052876,120]
[358229794,1744858280539,-500.0,0.00052876,120]
[358229795,1744858280549,-500.0,0.00052876,120]
[358229796,1744858280560,-769.41,0.00052876,120]
[358229797,1744858280570,-572.56966067,0.00052876,120]
[358229798,1744858280581,-963.83,0.00052876,120]
[358229799,1744858280591,-1338.87,0.00052876,120]
[358229800,1744858280602,-500.0,0.00052876,120]
[358229801,1744858280612,-151.0,0.00052876,120]
[358229802,1744858280622,-151.0,0.00052876,120]
[358229803,1744858280632,-500.0,0.00052876,120]
[358229804,1744858280642,-500.0,0.00052876,120]
[358229805,1744858280652,-587.69,0.00052876,120]
[358229806,1744858280662,-500.0,0.00052876,120]
[358229807,1744858280671,-151.0,0.00052876,120]
[358229808,1744858280682,-231.378478,0.00052876,120]
[358229809,1744858280691,-1212.34,0.00052876,120]
[358229810,1744858280701,-500.0,0.00052876,120]
[358229811,1744858280711,-809.54,0.00052876,120]
[358229812,1744858280721,-772.46,0.00052876,120]
[358229813,1744858280731,-585.77,0.00052876,120]
[358229814,1744858280740,-557.68,0.00052876,120]
[358229815,1744858280750,-2037.67,0.00052876,120]
[358229816,1744858280759,-707.4,0.00052876,120]
[358229817,1744858280769,-647.81,0.00052876,120]
[358229818,1744858280779,-163.1630134,0.00052876,120]
[358229819,1744858280791,-1790.67,0.00052876,120]
[358229820,1744858280801,-579.31216846,0.00052876,120]